Workbook

Sheet HIST. OPERAÇÕES
B9: Histórico de Operações | E9: =COUNTIF(TB_HistoricoOperacoes[Ativo],"<>") -> 14
B10: Registro | C10: Data Entrada | D10: Corretora | E10: Nota | F10: Ativo | G10: C / V | H10: Qtde | I10: Vlr Entrada | J10: Total Ativo (E) | K10: PM (Preço Médio) | L10: Resultado Esperado PM | M10: Data - Saída | N10: Vlr Saída | O10: Total Ativo (S)
B11: =ROW()-ROW(TB_HistoricoOperacoes[[#Headers],[Registro]]) -> 1 | C11: 2021-03-20 | D11: Modal Mais | E11: 1620 | F11: NTCO3 | G11: V | H11: 150 | I11: 37 | J11: =TB_HistoricoOperacoes[[#This Row],[Qtde]]*TB_HistoricoOperacoes[[#This Row],[Vlr Entrada]] -> 5550 | L11: -38.14 | O11: =TB_HistoricoOperacoes[[#This Row],[Qtde]]*TB_HistoricoOperacoes[[#This Row],[Vlr Saída]] -> 0
B12: =ROW()-ROW(TB_HistoricoOperacoes[[#Headers],[Registro]]) -> 2 | C12: 2021-03-20 | D12: Modal Mais | E12: 1631 | F12: BBSS3 | G12: C | H12: 250 | I12: 20.6 | J12: =TB_HistoricoOperacoes[[#This Row],[Qtde]]*TB_HistoricoOperacoes[[#This Row],[Vlr Entrada]] -> 5150 | L12: 20.6 | O12: =TB_HistoricoOperacoes[[#This Row],[Qtde]]*TB_HistoricoOperacoes[[#This Row],[Vlr Saída]] -> 0
B13: =ROW()-ROW(TB_HistoricoOperacoes[[#Headers],[Registro]]) -> 3 | C13: 2021-03-17 | D13: Modal Mais | E13: 1620 | F13: TASA4 | G13: C | H13: 500 | I13: 10.3 | J13: =TB_HistoricoOperacoes[[#This Row],[Qtde]]*TB_HistoricoOperacoes[[#This Row],[Vlr Entrada]] -> 5150 | L13: 0 | M13: 2021-03-20 | N13: 21.32 | O13: =TB_HistoricoOperacoes[[#This Row],[Qtde]]*TB_HistoricoOperacoes[[#This Row],[Vlr Saída]] -> 10660
B14: =ROW()-ROW(TB_HistoricoOperacoes[[#Headers],[Registro]]) -> 4 | C14: 2021-03-16 | D14: XP | E14: 4221 | F14: MRFG3 | G14: V | H14: 150 | I14: 14.54 | J14: =TB_HistoricoOperacoes[[#This Row],[Qtde]]*TB_HistoricoOperacoes[[#This Row],[Vlr Entrada]] -> 2181 | L14: -14.59 | O14: =TB_HistoricoOperacoes[[#This Row],[Qtde]]*TB_HistoricoOperacoes[[#This Row],[Vlr Saída]] -> 0
B15: =ROW()-ROW(TB_HistoricoOperacoes[[#Headers],[Registro]]) -> 5 | C15: 2021-03-16 | D15: Modal Mais | E15: 2119 | F15: NTCO3 | G15: V | H15: 200 | I15: 39 | J15: =TB_HistoricoOperacoes[[#This Row],[Qtde]]*TB_HistoricoOperacoes[[#This Row],[Vlr Entrada]] -> 7800 | L15: -38.14 | M15: - | O15: =TB_HistoricoOperacoes[[#This Row],[Qtde]]*TB_HistoricoOperacoes[[#This Row],[Vlr Saída]] -> 0
B16: =ROW()-ROW(TB_HistoricoOperacoes[[#Headers],[Registro]]) -> 6 | C16: 2021-03-09 | D16: Rico | E16: 3037 | F16: VALE3 | G16: C | H16: 100 | I16: 24.12 | J16: =TB_HistoricoOperacoes[[#This Row],[Qtde]]*TB_HistoricoOperacoes[[#This Row],[Vlr Entrada]] -> 2412 | L16: 24.12 | O16: =TB_HistoricoOperacoes[[#This Row],[Qtde]]*TB_HistoricoOperacoes[[#This Row],[Vlr Saída]] -> 0
B17: =ROW()-ROW(TB_HistoricoOperacoes[[#Headers],[Registro]]) -> 7 | C17: 2021-03-09 | D17: XP | E17: 4112 | F17: VALE3 | G17: C | H17: 200 | I17: 24.46 | J17: =TB_HistoricoOperacoes[[#This Row],[Qtde]]*TB_HistoricoOperacoes[[#This Row],[Vlr Entrada]] -> 4892 | L17: 24.46 | O17: =TB_HistoricoOperacoes[[#This Row],[Qtde]]*TB_HistoricoOperacoes[[#This Row],[Vlr Saída]] -> 0
B18: =ROW()-ROW(TB_HistoricoOperacoes[[#Headers],[Registro]]) -> 8 | C18: 2021-03-08 | D18: Genial Investimentos | E18: 1620 | F18: GOAU4 | G18: C | H18: 200 | I18: 11.92 | J18: =TB_HistoricoOperacoes[[#This Row],[Qtde]]*TB_HistoricoOperacoes[[#This Row],[Vlr Entrada]] -> 2384 | M18: 2021-03-12 | N18: 11.52 | O18: =TB_HistoricoOperacoes[[#This Row],[Qtde]]*TB_HistoricoOperacoes[[#This Row],[Vlr Saída]] -> 2304
B19: =ROW()-ROW(TB_HistoricoOperacoes[[#Headers],[Registro]]) -> 9 | C19: 2021-03-08 | D19: Genial Investimentos | E19: 1620 | F19: ENBR3 | G19: C | H19: 100 | I19: 18.79 | J19: =TB_HistoricoOperacoes[[#This Row],[Qtde]]*TB_HistoricoOperacoes[[#This Row],[Vlr Entrada]] -> 1879 | L19: 18.48 | O19: =TB_HistoricoOperacoes[[#This Row],[Qtde]]*TB_HistoricoOperacoes[[#This Row],[Vlr Saída]] -> 0
B20: =ROW()-ROW(TB_HistoricoOperacoes[[#Headers],[Registro]]) -> 10 | C20: 2021-03-08 | D20: Genial Investimentos | E20: 1620 | F20: PRFM3 | G20: C | H20: 100 | I20: 8.87 | J20: =TB_HistoricoOperacoes[[#This Row],[Qtde]]*TB_HistoricoOperacoes[[#This Row],[Vlr Entrada]] -> 887 | O20: =TB_HistoricoOperacoes[[#This Row],[Qtde]]*TB_HistoricoOperacoes[[#This Row],[Vlr Saída]] -> 0
B21: =ROW()-ROW(TB_HistoricoOperacoes[[#Headers],[Registro]]) -> 11 | C21: 2021-03-05 | D21: Modal Mais | E21: 1405 | F21: MRFG3 | G21: V | H21: 35 | I21: 14.59 | J21: =TB_HistoricoOperacoes[[#This Row],[Qtde]]*TB_HistoricoOperacoes[[#This Row],[Vlr Entrada]] -> 510.65 | L21: -14.59 | O21: =TB_HistoricoOperacoes[[#This Row],[Qtde]]*TB_HistoricoOperacoes[[#This Row],[Vlr Saída]] -> 0
B22: =ROW()-ROW(TB_HistoricoOperacoes[[#Headers],[Registro]]) -> 12 | C22: 2021-03-04 | D22: Genial Investimentos | E22: 1405 | F22: MRFG3 | G22: V | H22: 45 | I22: 14.67 | J22: =TB_HistoricoOperacoes[[#This Row],[Qtde]]*TB_HistoricoOperacoes[[#This Row],[Vlr Entrada]] -> 660.15 | L22: -14.59 | O22: =TB_HistoricoOperacoes[[#This Row],[Qtde]]*TB_HistoricoOperacoes[[#This Row],[Vlr Saída]] -> 0
B23: =ROW()-ROW(TB_HistoricoOperacoes[[#Headers],[Registro]]) -> 13 | C23: 2021-03-01 | D23: Clear | E23: 1728 | F23: MRFG3 | G23: V | H23: 200 | I23: 14.61 | J23: =TB_HistoricoOperacoes[[#This Row],[Qtde]]*TB_HistoricoOperacoes[[#This Row],[Vlr Entrada]] -> 2922 | M23: 2021-03-02 | N23: 14.72 | O23: =TB_HistoricoOperacoes[[#This Row],[Qtde]]*TB_HistoricoOperacoes[[#This Row],[Vlr Saída]] -> 2944
B24: =ROW()-ROW(TB_HistoricoOperacoes[[#Headers],[Registro]]) -> 14 | C24: 2021-02-26 | D24: Genial Investimentos | E24: 2109 | F24: ENBR3 | G24: C | H24: 245 | I24: 18.35 | J24: =TB_HistoricoOperacoes[[#This Row],[Qtde]]*TB_HistoricoOperacoes[[#This Row],[Vlr Entrada]] -> 4495.75 | L24: 18.48 | O24: =TB_HistoricoOperacoes[[#This Row],[Qtde]]*TB_HistoricoOperacoes[[#This Row],[Vlr Saída]] -> 0
B27: Boa tarde, colaboradores do fórum.
B28: Preciso de ajuda em uma fórmula que calcula o Preço Médio de Ativos de um ativo que ainda estão com posição aberta.
B29: Condição para ativos com posição aberta:
B30: Coluna [Data - Saída] = "" (vazio) ou Coluna [Data - Saída] = "-" e Coluna [Vlr Saída] = 0
B31: A fórmula deve retornar o PM somente dos ativos das linhas com posição aberta.
B32: Inseri uma coluna na qual apresento o resultado esperado.
B33: Por padrão as linhas que estiverem com a posição encerrada devem retornar [[PM (Preço médio] = R$ 0,00
B34: Seguem alguns exemplos para demonstrar o resultado esperado.
B35: Situação A:
B36: Linhas 1 e 5 da Tabela
B37: O Ativo NTCO3 apresenta 2 posições vendidas
B38: (150 x 37,00 = 5.550,00) e (200 x 39,00 = 7.800,00)
B39: Resultado esperado (5.550 + 7.800) / 350 = - 38,14 (negativo pois é uma posição vendida)
B40: Situação B:
B41: Linhas 3 da Tabela
B42: O Ativo TASA4 não apresenta operação aberta
B43: Portanto o campo [PM (Preço médio] = R$ 0,00
B44: Situação C:
B45: Linhas 4, 11, 12 e 13 - Ativo MRFG3 com 4 posições Vendidas porém uma delas está encerrada
B46: Restam 3 posições vendidas com PM de ((150 x 14,54) + (100 x 14,59) + (100 x 14,67)) / 350
B47: PM = 5.307/350
B48: PM = - 14,59 (sinal negativo pq é uma posição vendida)
B49: Muito obrigado a quem puder colaborar.
B50: Segue planilha de exemplo para testes.

Sheet Planilha1
B3: Papel | C3: Numero do Trade | E3: 1 | G3: =E3+1 -> 2 | I3: =G3+1 -> 3 | K3: =I3+1 -> 4 | M3: =K3+1 -> 5 | O3: =M3+1 -> 6 | P3: FECHTO. | S3: Corret. | U3: TAB.EVENTOS
B4: MRFG3 | C4: Tipo de operação | E4: =IF(AND(E8="",B8=""),"",IF($B8<>"Opção","À vista","Day Trade")) -> À vista | G4: =IF(AND(D8="CP",F8="VD",G8=E8),"Day Trade","À vista") -> À vista | I4: =IF(AND(F8="CP",H8="VD",I8=G8),"Day Trade","À vista") -> À vista | K4: =IF(AND(H8="CP",J8="VD",K8=I8),"Day Trade","À vista") -> À vista | M4: =IF(AND(J8="CP",L8="VD",M8=K8),"Day Trade","À vista") -> À vista | O4: =IF(AND(L8="CP",N8="VD",O8=M8),"Day Trade","À vista") -> À vista | P4: APURAÇÃO | Q4: OPERAÇÃO | S4: CÓDIGO | T4: NOME | U4: CP | V4: COMPRA
B5: =IF(AND(E5>0,B6<>""),CONCATENATE(A5,$B6)," ") ->  | C5: Saldo Anterior (Fís.) | E5: 0 | G5: =E16 -> 200 | I5: =G16 -> 0 | K5: =I16 -> 45 | M5: =K16 -> 80 | O5: =M16 -> 230 | P5: Cotação | S5: XP | T5: XP-CORRET | U5: VD | V5: VENDA
C6: Saldo Anterior (Fin.) | E6: 0 | G6: =IF(E17>0,E17,0) -> 2922 | I6: =IF(G17>0,G17,0) -> 0 | K6: =IF(I17>0,I17,0) -> 660.15 | M6: =IF(K17>0,K17,0) -> 1170.8 | O6: =IF(M17>0,M17,0) -> 3351.8 | P6: Val.Cart. | Q6: =Q5*O16 -> 0 | S6: IT | T6: ITAÚ | U6: AG | V6: AGRUPTO.
B7: =IF(AND(B5<>"",E5>0),CONCATENATE($A$17,B6)," ") ->  | C7: Preço Médio Anterior | E7: =IF(E6<1,0,(E6/E5)) -> 0 | G7: =IF(G6<1,0,(G6/G5)) -> 14.61 | I7: =IF(I6<1,0,(I6/I5)) -> 0 | K7: =IF(K6<1,0,(K6/K5)) -> 14.67 | M7: =IF(M6<1,0,(M6/M5)) -> 14.635 | O7: =IF(O6<1,0,(O6/O5)) -> 14.57304348 | P7: Variação | Q7: =Q6-O17 -> -3351.8 | S7: MO | T7: MODAL | U7: SP | V7: SPLIT
C8: Data da Operação | D8: CP | E8: 2021-03-01 | F8: VD | G8: 2021-03-02 | H8: CP | I8: 2021-03-05 | J8: CP | K8: 2021-03-16 | L8: CP | M8: 2021-03-17 | N8: CP | P8: Resultado | Q8: =IF(Q7<0,"PREJÚ",IF(Q7=0,"NEUTRO","LUCRO")) -> PREJÚ | U8: BN | V8: BÔNUS
A9: =VLOOKUP($A8,$U$6:$V$10,2,FALSE) ->  | B9: =VLOOKUP(C$1,[1]Diário!$B$9:$H$95,MATCH($I$2,[1]Diário!$B$9:$H$9,FALSE)) ->  | C9: Quantidade | E9: 200 | G9: 200 | I9: 45 | K9: 35 | M9: 150 | P9: RESUMO | U9: SB | V9: SUBSCRIÇÃO
A10: EVENTOS | C10: Cotação | E10: 14.61 | G10: 14.72 | I10: 14.67 | K10: 14.59 | M10: 14.54 | P10: =SUMIF($D8:$O8,"CP",$E11:$O11)*-1 -> -6273.8 | Q10: compra
C11: SubTotal da Operação | E11: =E10*E9 -> 2922 | G11: =G10*G9 -> 2944 | I11: =I10*I9 -> 660.15 | K11: =K10*K9 -> 510.65 | M11: =M10*M9 -> 2181 | O11: =O10*O9 -> 0 | P11: =SUMIF($D8:$O8,"VD",$E11:$O11) -> 2944 | Q11: venda
C12: Corretagem | D12: XP | E12: 0 | F12: XP | G12: 0 | H12: XP | I12: 0 | J12: XP | K12: 0 | L12: XP | M12: 0 | N12: XP | O12: 0 | P12: =SUM($D12:$O12) -> 0 | Q12: corret.
C13: Emolumentos | E13: 0 | G13: 0 | I13: 0 | K13: 0 | M13: 0 | O13: 0 | P13: =SUM($D13:$O13) -> 0 | Q13: emolum.
C14: Total da Despesa | E14: =SUM(E12:E13) -> 0 | G14: =SUM(G12:G13) -> 0 | I14: =SUM(I12:I13) -> 0 | K14: =SUM(K12:K13) -> 0 | M14: =SUM(M12:M13) -> 0 | O14: =SUM(O12:O13) -> 0 | P14: =SUM($D14:$O14)*-1 -> 0 | Q14: despesa
C15: LÍQUIDO DA OPERAÇÃO | E15: =IF(D8="CP",(E11+E14),IF(D8="VD",(E11-E14)*-1,0)) -> 2922 | G15: =IF(F8="CP",(G11+G14),IF(F8="VD",(G11-G14)*-1,0)) -> -2944 | I15: =IF(H8="CP",(I11+I14),IF(H8="VD",(I11-I14)*-1,0)) -> 660.15 | K15: =IF(J8="CP",(K11+K14),IF(J8="VD",(K11-K14)*-1,0)) -> 510.65 | M15: =IF(L8="CP",(M11+M14),IF(L8="VD",(M11-M14)*-1,0)) -> 2181 | O15: =IF(N8="CP",(O11+O14),IF(N8="VD",(O11-O14)*-1,0)) -> 0 | P15: =SUM($P10:$P11,$P14) -> -3329.8 | Q15: Soma
C16: Saldo Atual (Fís.) | E16: =IF(D8="AG",(E5/$B8),IF(D8="SP",(E5*$B8),IF(D8="VD",(E5-E9),IF(OR(D8="BN",D8="SB",D8="CP"),E9+E5,E5)))) -> 200 | G16: =IF(F8="AG",(G5/$B8),IF(F8="SP",(G5*$B8),IF(F8="VD",(G5-G9),IF(OR(F8="BN",F8="SB",F8="CP"),G9+G5,G5)))) -> 0 | I16: =IF(H8="AG",(I5/$B8),IF(H8="SP",(I5*$B8),IF(H8="VD",(I5-I9),IF(OR(H8="BN",H8="SB",H8="CP"),I9+I5,I5)))) -> 45 | K16: =IF(J8="AG",(K5/$B8),IF(J8="SP",(K5*$B8),IF(J8="VD",(K5-K9),IF(OR(J8="BN",J8="SB",J8="CP"),K9+K5,K5)))) -> 80 | M16: =IF(L8="AG",(M5/$B8),IF(L8="SP",(M5*$B8),IF(L8="VD",(M5-M9),IF(OR(L8="BN",L8="SB",L8="CP"),M9+M5,M5)))) -> 230 | O16: =IF(N8="AG",(O5/$B8),IF(N8="SP",(O5*$B8),IF(N8="VD",(O5-O9),IF(OR(N8="BN",N8="SB",N8="CP"),O9+O5,O5)))) -> 230 | P16: RETORNO
C17: Saldo Atual (Fin.) | E17: =IF(E6+E15<1,0,E6+E15) -> 2922 | G17: =IF(G6+G15<1,0,G6+G15) -> 0 | I17: =IF(I6+I15<1,0,I6+I15) -> 660.15 | K17: =IF(K6+K15<1,0,K6+K15) -> 1170.8 | M17: =IF(M6+M15<1,0,M6+M15) -> 3351.8 | O17: =IF(O6+O15<1,0,O6+O15) -> 3351.8 | P17: Bruto | Q17: =P21 -> 22
C18: Preço Médio Atual | E18: =IF(AND(E7=0,E9>1),(E15/E9),0) -> 14.61 | G18: =IFERROR(G17/G16,0) -> 0 | I18: =IFERROR(I17/I16,0) -> 14.67 | K18: =IFERROR(K17/K16,0) -> 14.635 | M18: =IFERROR(M17/M16,0) -> 14.57304348 | O18: =IFERROR(O17/O16,0) -> 14.57304348 | P18: Líquido | Q18: =(Q17-(P24+P25)) -> 18.7
C19: Retorno Day Trade | E19: =IF(AND(D8="VD",E4="Day Trade"),(E11-E14)-(E7*E9),0) -> 0 | G19: =IF(AND(F8="VD",G4="Day Trade"),(G11-G14)-(G7*G9),0) -> 0 | I19: =IF(AND(H8="VD",I4="Day Trade"),(I11-I14)-(I7*I9),0) -> 0 | K19: =IF(AND(J8="VD",K4="Day Trade"),(K11-K14)-(K7*K9),0) -> 0 | M19: =IF(AND(L8="VD",M4="Day Trade"),(M11-M14)-(M7*M9),0) -> 0 | O19: =IF(AND(N8="VD",O4="Day Trade"),(O11-O14)-(O7*O9),0) -> 0 | P19: =SUM(E19:O19) -> 0 | Q19: Day Trade
C20: Retorno À Vista | E20: =IF(AND(D8="VD",E4="À vista"),(E11-E14)-(E7*E9),0) -> 0 | G20: =IF(AND(F8="VD",G4="À vista"),(G11-G14)-(G7*G9),0) -> 22 | I20: =IF(AND(H8="VD",I4="À vista"),(I11-I14)-(I7*I9),0) -> 0 | K20: =IF(AND(J8="VD",K4="À vista"),(K11-K14)-(K7*K9),0) -> 0 | M20: =IF(AND(L8="VD",M4="À vista"),(M11-M14)-(M7*M9),0) -> 0 | O20: =IF(AND(N8="VD",O4="À vista"),(O11-O14)-(O7*O9),0) -> 0 | P20: =SUM(E20:O20) -> 22 | Q20: À Vista
C21: Valor Retornado | E21: =E19+E20 -> 0 | G21: =G19+G20 -> 22 | I21: =I19+I20 -> 0 | K21: =K19+K20 -> 0 | M21: =M19+M20 -> 0 | O21: =O19+O20 -> 0 | P21: =SUM(E21:O21) -> 22 | Q21: Ganho
C22: Valor Investido | E22: =IF(D8="CP",E6+E17,IF(AND(D8="VD",E17=0),0,(E6+E14))) -> 2922 | G22: =IF(F8="CP",G6+G17,IF(AND(F8="VD",G17=0),0,(G6+G14))) -> 0 | I22: =IF(H8="CP",I6+I17,IF(AND(H8="VD",I17=0),0,(I6+I14))) -> 660.15 | K22: =IF(J8="CP",K6+K17,IF(AND(J8="VD",K17=0),0,(K6+K14))) -> 1830.95 | M22: =IF(L8="CP",M6+M17,IF(AND(L8="VD",M17=0),0,(M6+M14))) -> 4522.6 | O22: =IF(N8="CP",O6+O17,IF(AND(N8="VD",O17=0),0,(O6+O14))) -> 6703.6 | P22: =LARGE(E22:O22,1) -> 6703.6 | Q22: Vr.Invest.
C23: Rentabilidade % | E23: =IF(E21=0,0,((E21/E6)*100)) -> 0 | G23: =IF(G21=0,0,((G21/G6)*100)) -> 0.7529089665 | I23: =IF(I21=0,0,((I21/I6)*100)) -> 0 | K23: =IF(K21=0,0,((K21/K6)*100)) -> 0 | M23: =IF(M21=0,0,((M21/M6)*100)) -> 0 | O23: =IF(O21=0,0,((O21/O6)*100)) -> 0 | P23: =IF(P22=0,0,((P21/P22)*100)) -> 0.3281818724 | Q23: Rentab.%
C24: I.R.Calculado-D.Trade | E24: =IF(E19<=0,0,E19* [2]Regras!$J$20) -> 0 | G24: =IF(G19<=0,0,G19*[2]Regras!$J$20) -> 0 | I24: =IF(I19<=0,0,I19* [2]Regras!$J$20) -> 0 | K24: =IF(K19<=0,0,K19* [2]Regras!$J$20) -> 0 | M24: =IF(M19<=0,0,M19* [2]Regras!$J$20) -> 0 | O24: =IF(O19<=0,0,O19* [2]Regras!$J$20) -> 0 | P24: =SUM(E24:O24) -> 0 | Q24: IR-DT
C25: I.R.Calculado-À Vista | E25: =IF(E20<=0,0,E20* [2]Regras!$I$20) -> 0 | G25: =IF(G20<=0,0,G20*[2]Regras!$I$20) -> 3.3 | I25: =IF(I20<=0,0,I20* [2]Regras!$I$20) -> 0 | K25: =IF(K20<=0,0,K20* [2]Regras!$I$20) -> 0 | M25: =IF(M20<=0,0,M20* [2]Regras!$I$20) -> 0 | O25: =IF(O20<=0,0,O20* [2]Regras!$I$20) -> 0 | P25: =SUM(E25:O25) -> 3.3 | Q25: IR-V
